bitfinex-derivatives/quotes_SOLF0:USTF0_20241231
["timestamp","ask_amount","ask_price","bid_price","bid_amount"]
[1735637732115,2.5902,193.34,193.31,2.5905]
[1735637733410,2.5902,193.34,193.26,4.4636]
[1735637733411,8.24226748,193.36,193.26,4.4636]
[1735637733617,8.24226748,193.34,193.27,8.24226748]
[1735637734217,2.5906,193.31,193.28,2.5908]
[1735637734921,8.24226748,193.3,193.26,1.5052]
[1735637735220,8.24226748,193.28,193.22,44.80436856]
[1735637735723,8.24226748,193.28,193.21,38.45192501]
[1735637736020,2.5913,193.25,193.21,41.04362501]
[1735637736519,2.5913,193.25,193.21,30.20965753]
[1735637736720,10.83366748,193.24,193.21,1.5083]
[1735637737020,2.5914,193.24,193.21,1.5083]
[1735637737423,2.5914,193.24,193.21,4.1001]
[1735637738224,2.5913,193.25,193.21,4.1001]
[1735637738417,2.5913,193.25,193.22,2.5917]
[1735637738620,2.5913,193.25,193.21,9.75056748]
[1735637739317,2.5915,193.24,193.21,4.1]
[1735637739516,2.5915,193.24,193.21,1.5083]
[1735637740625,2.5915,193.24,193.21,4.1001]
[1735637743425,11.38226748,193.24,193.19,1.6106]
[1735637743625,8.24226748,193.2,193.14,8.24226748]
[1735637743823,8.24226748,193.2,193.13,1.4998]
[1735637744026,2.5923,193.18,193.13,4.0926]
[1735637744425,8.24226748,193.2,193.13,1.4998]
[1735637744622,2.5925,193.16,193.13,1.4998]
[1735637745619,8.24226748,193.18,193.13,1.4998]
[1735637745820,2.5924,193.17,193.13,1.4998]
[1735637746521,2.5924,193.17,193.13,4.0927]
[1735637749223,2.5924,193.17,193.13,2.5929]
[1735637749923,2.5914,193.25,193.14,10.83496748]
[1735637750224,8.24226748,193.29,193.22,8.24226748]
[1735637750824,2.591,193.27,193.23,2.5915]
[1735637751224,2.591,193.27,193.22,8.24226748]
[1735637751427,2.5913,193.26,193.22,2.5917]
[1735637751628,2.5913,193.26,193.22,10.83396748]
[1735637751819,8.24226748,193.29,193.22,8.24226748]
[1735637752722,2.5909,193.29,193.22,8.24226748]
[1735637753127,8.24226748,193.31,193.22,8.24226748]
[1735637753328,2.5909,193.28,193.22,8.24226748]
[1735637754028,2.5909,193.28,193.24,2.5913]
[1735637754933,2.5912,193.27,193.23,2.5916]
[1735637756728,2.5913,193.26,193.22,10.83396748]
[1735637757030,8.24226748,193.27,193.2,8.24226748]
[1735637757726,8.78970136,193.37,193.18,2.9915]
[1735637757727,8.78970136,193.35,193.22,8.24226748]
[1735637757930,8.24226748,193.31,193.24,8.24226748]
[1735637759531,13.97055606,193.4,193.26,8.24226748]
[1735637759732,8.24226748,193.34,193.26,8.24226748]
[1735637760930,8.24226748,193.34,193.28,8.24226748]
[1735637761129,8.24226748,193.36,193.28,10.83316748]
[1735637761331,8.3698312,193.43,193.3,8.24226748]
[1735637761534,8.24226748,193.39,193.32,8.24226748]
[1735637761833,11.38226748,193.42,193.34,8.24226748]
[1735637762434,8.24226748,193.42,193.36,8.24226748]
[1735637762837,2.5896,193.39,193.36,8.24226748]
[1735637763133,8.24226748,193.42,193.36,8.24226748]
[1735637763433,2.5896,193.38,193.36,8.24226748]
[1735637763627,8.24226748,193.42,193.36,8.24226748]
[1735637764230,8.24226748,193.44,193.36,8.24226748]
[1735637764933,8.24226748,193.44,193.26,3.02]
[1735637764934,8.24226748,193.37,193.13,178.56291361]
[1735637765132,3.14,193.36,193.26,8.24226748]
[1735637765325,11.38226748,193.35,193.26,8.24226748]
[1735637765725,8.24226748,193.35,193.26,8.24226748]
[1735637766034,2.5906,193.3,193.28,8.24226748]
[1735637766433,3.14,193.33,193.28,8.24226748]
[1735637766434,2.5905,193.32,193.28,8.24226748]
[1735637766635,3.14,193.33,193.28,8.24226748]
[1735637767534,2.5905,193.31,193.28,8.24226748]
[1735637770034,3.14,193.33,193.3,8.24226748]
[1735637770637,3.14,193.33,193.3,11.33666748]
[1735637772345,2.5905,193.32,193.3,11.33666748]
[1735637772547,3.14,193.33,193.3,3.0944]
[1735637772742,3.14,193.33,193.28,8.24226748]
[1735637773443,2.5907,193.3,193.28,8.24226748]
[1735637774846,3.14,193.33,193.28,8.24226748]
[1735637775149,2.5906,193.31,193.28,8.24226748]
[1735637783259,2.5906,193.31,193.28,10.83316748]
[1735637785058,3.14,193.34,193.26,1.5111]
[1735637785253,11.38226748,193.34,193.26,9.75336748]
[1735637786560,2.5909,193.29,193.26,12.34446748]
[1735637789562,21.62822618,193.4,193.23,3.1465]
[1735637789860,21.62822618,193.4,193.2,8.24226748]
[1735637789861,8.24226748,193.28,193.2,8.24226748]
[1735637790066,3.14,193.27,193.2,8.24226748]
[1735637790457,2.5916,193.23,193.2,10.83416748]
[1735637791268,2.5917,193.22,193.2,8.24226748]
[1735637791572,8.24226748,193.26,193.2,8.24226748]
[1735637791767,2.5918,193.22,193.19,2.5921]
[1735637791969,11.38226748,193.22,193.15,3.06953939]
[1735637792166,8.24226748,193.2,193.13,8.24226748]
[1735637792364,2.5927,193.15,193.11,8.24226748]
[1735637792562,2.5927,193.15,193.11,10.83536748]
[1735637793773,2.5925,193.16,193.12,2.593]
[1735637793969,3.14,193.17,193.13,8.24226748]
[1735637795566,3.14,193.17,193.15,8.24226748]
[1735637796175,3.14,193.17,193.15,10.83476748]
[1735637796474,11.38226748,193.22,193.15,8.24226748]
[1735637796876,2.5922,193.19,193.15,10.83476748]
[1735637797779,2.5919,193.21,193.17,10.83456748]
[1735637798076,2.5919,193.21,193.17,8.24226748]
[1735637798278,3.14,193.22,193.17,8.24226748]
[1735637798575,3.14,193.22,193.2,2.5919]
[1735637798775,3.14,193.22,193.19,8.24226748]
[1735637798973,3.14,193.22,193.19,10.83436748]
[1735637799180,2.5916,193.23,193.19,8.24226748]
[1735637799479,2.5914,193.25,193.2,2.5918]
[1735637799680,11.38226748,193.26,193.2,2.5918]
[1735637800280,11.38226748,193.26,193.11,3.14]
[1735637800281,3.14,193.26,193.21,8.24226748]
[1735637801277,2.5912,193.26,193.22,2.5917]
[1735637802880,11.38226748,193.28,193.22,2.5917]
[1735637803075,2.5912,193.26,193.22,2.5917]
[1735637803582,11.38226748,193.28,193.23,2.5915]
[1735637803777,11.38226748,193.28,193.23,8.24226748]
[1735637803778,2.591,193.28,193.23,8.24226748]
[1735637804382,2.591,193.28,193.24,2.5914]
[1735637804879,2.591,193.27,193.24,2.5914]
[1735637807689,21.62822618,193.4,193.25,8.24226748]
[1735637807988,8.24226748,193.36,193.29,8.24226748]
[1735637808280,3.14,193.39,193.27,8.24226748]
[1735637808281,8.24226748,193.34,193.27,8.24226748]
[1735637808485,8.24226748,193.32,193.25,8.24226748]
[1735637808677,11.38226748,193.32,193.25,8.24226748]
[1735637808877,2.591,193.27,193.25,8.24226748]
[1735637809180,11.38226748,193.32,193.24,1.5045]
[1735637809181,8.24226748,193.3,193.24,1.5045]
[1735637809780,8.24226748,193.3,193.19,1.5896]
[1735637809984,8.24226748,193.28,193.19,3.0804]
[1735637810185,8.24226748,193.26,193.19,9.73306748]
[1735637810380,2.5918,193.22,193.19,9.73306748]
[1735637812283,2.5916,193.23,193.19,12.32506748]
[1735637812483,2.5916,193.23,193.19,9.73306748]
[1735637812682,3.14,193.25,193.21,8.24226748]
[1735637812985,2.5915,193.24,193.21,8.24226748]
[1735637817687,2.5916,193.23,193.2,2.5919]
[1735637818183,8.24226748,193.26,193.19,9.73306748]
[1735637818389,8.24226748,193.26,193.19,1.4908]
[1735637818888,2.5918,193.21,193.19,1.4908]
[1735637819984,2.5918,193.21,193.19,4.0829]
[1735637820186,2.5917,193.22,193.19,12.32516748]
[1735637821189,3.14,193.24,193.19,9.73306748]
[1735637821489,3.14,193.24,193.21,8.24226748]
[1735637821888,5.7314,193.24,193.21,10.83406748]
[1735637822083,21.62822618,193.33,193.23,8.24226748]
[1735637822286,86.35543057,193.36,193.2,3.14]
[1735637822288,21.62822618,193.35,193.29,8.24226748]
[1735637822494,21.62822618,193.35,193.32,2.5903]
[1735637822682,21.62822618,193.35,193.31,8.24226748]
[1735637823393,3.14,193.37,193.3,8.24226748]
[1735637823987,2.5901,193.35,193.3,10.83276748]
[1735637824786,11.38226748,193.36,193.3,8.24226748]
[1735637824992,2.5904,193.32,193.3,8.24226748]
[1735637825296,2.5904,193.32,193.28,9.75296748]
[1735637825495,11.38226748,193.36,193.28,9.75296748]
[1735637825797,2.5906,193.31,193.28,9.75296748]
[1735637826686,2.5904,193.32,193.28,12.34386748]
[1735637828795,3.14,193.35,193.28,12.34386748]
[1735637828999,2.5905,193.31,193.28,12.34386748]
[1735637829699,3.14,193.35,193.3,8.24226748]
[1735637829900,2.5902,193.33,193.3,8.24226748]
[1735637830596,3.14,193.35,193.3,10.83286748]
[1735637830795,2.5901,193.34,193.32,8.24226748]
[1735637831192,2.5898,193.37,193.34,2.5901]
[1735637831702,2.5896,193.38,193.34,2.5901]
[1735637831890,11.38226748,193.41,193.34,2.5901]
[1735637832296,11.38226748,193.41,193.34,10.83236748]
[1735637833299,3.14,193.4,193.34,8.24226748]
[1735637833499,2.5898,193.37,193.34,8.24226748]
[1735637834998,2.5898,193.36,193.33,2.5902]
[1735637835602,2.5897,193.37,193.34,10.83236748]
[1735637837507,2.5897,193.37,193.34,8.24226748]
[1735637837701,2.5898,193.36,193.33,2.5902]
[1735637838705,2.59,193.35,193.32,10.83256748]
[1735637839409,2.59,193.35,193.32,2.5903]
[1735637839606,2.59,193.35,193.32,10.83256748]
[1735637840002,2.59,193.35,193.32,2.5903]
[1735637840203,2.59,193.35,193.32,10.83256748]
[1735637841402,57.49299166,193.49,193.34,8.24226748]
[1735637841609,8.24226748,193.47,193.39,8.24226748]
[1735637842202,8.24226748,193.47,193.4,2.5892]
[1735637842507,8.24226748,193.45,193.39,8.24226748]
[1735637843009,3.14,193.44,193.39,8.24226748]
[1735637843400,3.14,193.44,193.37,8.24226748]
[1735637843805,8.24226748,193.39,193.32,8.24226748]
[1735637844104,8.24226748,193.39,193.3,8.24226748]
[1735637844105,8.24226748,193.37,193.3,8.24226748]
[1735637844305,8.24226748,193.37,193.28,1.5107]
[1735637844609,3.14,193.39,193.3,8.24226748]
[1735637844810,8.24226748,193.37,193.3,8.24226748]
[1735637846010,8.24226748,193.35,193.28,1.5107]
[1735637846211,12.87080499,193.38,193.28,1.5107]
[1735637847215,12.87080499,193.38,193.29,2.5907]
[1735637847413,12.87080499,193.38,193.28,1.5107]
[1735637848111,12.87080499,193.38,193.28,4.1016]
[1735637848311,12.87080499,193.38,193.28,1.5107]
[1735637849512,12.87080499,193.38,193.3,2.5906]
[1735637849709,3.14,193.37,193.3,2.5906]
[1735637850113,3.14,193.38,193.28,14.38150499]
[1735637850715,12.87080499,193.41,193.28,14.38150499]
[1735637850915,3.14,193.39,193.28,14.38150499]
[1735637851316,3.14,193.39,193.31,12.87080499]
[1735637851815,3.14,193.42,193.34,12.87080499]
[1735637852016,3.14,193.42,193.35,1.5089]
[1735637852611,3.14,193.42,193.37,2.5896]
[1735637853621,3.14,193.42,193.36,2.5898]
[1735637853821,3.14,193.42,193.35,1.5089]
[1735637855116,3.14,193.42,193.36,1.5325]
[1735637855816,12.87080499,193.47,193.38,2.5895]
[1735637856015,3.14,193.46,193.37,12.87080499]
[1735637856419,3.14,193.46,193.37,15.46040499]
[1735637856620,3.14,193.46,193.37,2.5896]
[1735637857913,3.14,193.45,193.37,2.5896]
[1735637860415,3.14,193.45,193.36,1.5325]
[1735637860620,3.14,193.45,193.37,12.87080499]
[1735637861926,3.14,193.45,193.37,15.46040499]
[1735637862124,3.14,193.45,193.37,2.5896]
[1735637862421,21.52189806,193.53,193.43,12.87080499]
[1735637862924,21.52189806,193.52,193.43,12.87080499]
[1735637863322,21.52189806,193.52,193.46,2.5885]
[1735637863524,21.52189806,193.52,193.44,3.1568]
[1735637864021,3.14,193.52,193.44,5.7454]
[1735637864224,12.87080499,193.56,193.44,5.7454]
[1735637864423,3.14,193.55,193.44,5.7454]
[1735637864624,3.14,193.55,193.44,3.1568]
[1735637864924,3.14,193.55,193.45,2.5885]
[1735637865728,3.14,193.54,193.45,2.5885]
[1735637866327,3.14,193.54,193.46,2.5884]
[1735637866530,3.14,193.54,193.44,4.624]
[1735637867032,3.14,193.54,193.47,2.5882]
[1735637867327,12.87080499,193.59,193.45,12.87080499]
[1735637867530,3.14,193.57,193.49,2.588]
[1735637868025,2.5875,193.53,193.49,2.588]
[1735637868221,12.87080499,193.59,193.45,17.51350499]
[1735637868521,3.12,193.58,193.45,17.51350499]
[1735637869428,2.5874,193.55,193.49,2.5881]
[1735637869628,12.87080499,193.59,193.49,2.5881]
[1735637869926,3.12,193.58,193.49,2.5881]
[1735637870129,12.87080499,193.59,193.49,2.5881]
[1735637870423,2.587,193.58,193.54,2.5873]
[1735637870621,15.99080499,193.62,193.48,12.87080499]
[1735637871029,2.5869,193.58,193.53,2.5875]
[1735637871229,15.99080499,193.62,193.53,2.5875]
[1735637871423,15.99080499,193.62,193.48,12.87080499]
[1735637871624,2.5869,193.58,193.52,2.5876]
[1735637871823,15.99080499,193.62,193.48,12.87080499]
[1735637872023,3.12,193.61,193.48,12.87080499]
[1735637872827,2.5873,193.55,193.5,2.5878]
[1735637874538,3.12,193.61,193.5,2.5878]
[1735637874836,2.5875,193.54,193.5,2.5878]
[1735637876136,3.12,193.61,193.48,12.87080499]
[1735637876330,8.21910588,193.56,193.5,8.21910588]
[1735637876527,2.5879,193.51,193.47,5.7083]
[1735637876731,2.5879,193.51,193.49,8.21910588]
[1735637877331,8.21910588,193.54,193.45,1.5094]
[1735637877537,8.21910588,193.54,193.46,8.21910588]
[1735637877839,2.5883,193.48,193.46,8.21910588]
[1735637878238,2.5883,193.48,193.44,3.1568]
[1735637878839,2.5884,193.47,193.44,5.7455]
[1735637879035,12.84768105,193.55,193.44,5.7455]
[1735637879740,12.84768105,193.55,193.45,2.5886]
[1735637880937,2.5882,193.49,193.45,2.5886]
[1735637881339,12.84768105,193.55,193.46,2.5884]
[1735637881643,2.588,193.5,193.46,2.5884]
[1735637882439,12.84768105,193.55,193.44,3.1568]
[1735637882640,12.99838105,193.6,193.44,3.1568]
[1735637882943,3.12,193.59,193.46,12.84768105]
[1735637883140,2.5873,193.56,193.49,2.588]
[1735637883339,3.12,193.59,193.49,2.588]
[1735637884235,2.5871,193.56,193.49,2.588]
[1735637884436,3.12,193.59,193.5,2.5879]
[1735637884938,12.99838105,193.6,193.5,2.5879]
[1735637885145,3.12,193.59,193.49,2.588]
[1735637885443,2.5876,193.53,193.49,2.588]
[1735637885641,12.99838105,193.6,193.46,15.96768105]
[1735637885840,3.12,193.59,193.49,12.84768105]
[1735637886845,2.5872,193.56,193.49,12.84768105]
[1735637887038,3.12,193.59,193.49,12.84768105]
[1735637887442,3.12,193.6,193.53,2.5875]
[1735637887943,2.587,193.57,193.53,2.5875]
[1735637889945,2.587,193.58,193.49,12.84768105]
[1735637890541,2.587,193.58,193.51,2.5877]
[1735637890844,3.12,193.62,193.52,3.0399]
[1735637891046,2.587,193.57,193.52,3.0399]
[1735637892045,2.587,193.57,193.54,2.5873]
[1735637893641,2.5868,193.59,193.55,2.5871]
[1735637894951,12.84768105,193.63,193.54,2.5874]
[1735637895150,3.12,193.61,193.54,2.5874]
[1735637895450,2.587,193.58,193.54,2.5874]
[1735637896449,2.587,193.58,193.55,2.5872]
[1735637898150,3.12,193.61,193.52,3.0399]
[1735637898945,3.12,193.61,193.52,5.6275]
[1735637899950,3.12,193.61,193.53,2.5874]
[1735637900145,2.5871,193.57,193.53,2.5874]
[1735637900352,2.5871,193.57,193.53,10.80343371]
[1735637900551,2.5871,193.57,193.54,2.5874]
[1735637900753,8.21603371,193.6,193.53,8.21603371]
[1735637901051,2.5869,193.58,193.53,8.21603371]
[1735637901254,2.5869,193.58,193.55,2.5872]
[1735637901853,8.21603371,193.6,193.55,2.5872]
[1735637903472,3.12,193.61,193.55,10.80323371]
[1735637904554,2.5869,193.58,193.55,10.80323371]
[1735637905054,3.12,193.61,193.55,8.21603371]
[1735637906054,2.5871,193.57,193.55,8.21603371]
[1735637908249,2.5873,193.55,193.53,8.21603371]
[1735637908954,2.5874,193.54,193.53,8.21603371]
[1735637909752,2.5874,193.54,193.52,5.6275]
[1735637910058,2.5875,193.53,193.52,3.0399]
[1735637910758,2.5875,193.54,193.52,3.0399]
[1735637911452,8.21603371,193.59,193.52,1.5666]
[1735637911453,2.5875,193.53,193.52,1.5666]
[1735637914661,2.5872,193.56,193.52,1.5666]
[1735637914861,2.5872,193.56,193.54,2.5874]
[1735637915057,8.21603371,193.58,193.52,1.5666]
[1735637915258,2.5874,193.55,193.52,4.1543]
[1735637918662,2.5875,193.54,193.51,10.80383371]
[1735637918858,8.21603371,193.58,193.51,10.80383371]
[1735637919362,16.62938757,193.58,193.52,2.5877]
[1735637919862,2.5874,193.55,193.52,2.5877]
[1735637920163,19.74938757,193.58,193.51,8.21603371]
[1735637920362,19.74938757,193.58,193.51,10.80383371]
[1735637921363,2.5874,193.55,193.52,2.5876]
[1735637921966,11.33603371,193.58,193.51,8.21603371]
[1735637922460,19.74939037,193.58,193.51,8.21603371]
[1735637922870,2.5874,193.55,193.52,2.5876]
[1735637925069,2.5872,193.56,193.53,10.80353371]
[1735637925269,15.29469409,193.59,193.53,8.21603371]
[1735637925468,8.4178497,193.59,193.53,8.21603371]
[1735637925868,32.85793177,193.6,193.53,8.21603371]
[1735637926068,29.73793177,193.6,193.53,8.21603371]
[1735637926570,29.73793177,193.6,193.47,1.5925]
[1735637926571,21.52189806,193.6,193.55,8.21603371]
[1735637926769,60.51172816,193.61,193.55,8.21603371]
[1735637926770,24.64189806,193.61,193.55,8.21603371]
[1735637927269,21.52189806,193.61,193.55,8.21603371]
[1735637927467,2.5869,193.58,193.55,10.80323371]
[1735637927665,11.33603371,193.62,193.55,8.21603371]
[1735637928071,11.33603371,193.62,193.55,10.80323371]
[1735637928271,6.88051916,193.63,193.59,8.21603371]
[1735637928471,2.5862,193.63,193.6,2.5865]
[1735637928664,2.5862,193.63,193.61,8.21603371]
[1735637928868,57.39172816,193.65,193.61,8.21603371]
[1735637929175,2.5862,193.64,193.61,8.21603371]
[1735637930374,8.21603371,193.67,193.61,8.21603371]
[1735637930971,2.5862,193.64,193.61,8.21603371]
[1735637931873,9.84049833,193.69,193.57,1.518]
[1735637932077,8.21603371,193.67,193.59,8.21603371]
[1735637932572,2.5866,193.6,193.59,8.21603371]
[1735637935178,8.21603371,193.65,193.57,8.21603371]
[1735637935480,3.12,193.64,193.57,8.21603371]
[1735637935679,2.5868,193.59,193.57,8.21603371]
[1735637935978,3.12,193.64,193.57,8.21603371]
[1735637936676,8.37295422,193.71,193.63,8.21603371]
[1735637936877,257.71663028,193.79,193.7,8.21603371]
[1735637936878,252.54823028,193.79,193.7,8.21603371]
[1735637937173,190.2158659,193.77,193.7,8.21603371]
[1735637937374,94.30362595,193.75,193.69,8.21603371]
[1735637937575,8.21603371,193.75,193.69,8.21603371]
[1735637938079,8.21603371,193.75,193.64,4.6917]
[1735637938373,8.21603371,193.71,193.65,8.21603371]
[1735637938577,11.33603371,193.71,193.65,8.21603371]
[1735637938968,2.5857,193.68,193.65,8.21603371]
[1735637939273,3.12,193.71,193.67,8.21603371]
[1735637939873,5.7052,193.71,193.67,8.21603371]
[1735637940078,3.12,193.71,193.67,8.21603371]
[1735637940278,3.12,193.74,193.69,8.21603371]
[1735637940475,2.5852,193.71,193.69,8.21603371]
[1735637940679,3.12,193.76,193.69,8.21603371]
[1735637940886,3.12,193.76,193.71,8.21603371]
[1735637941381,11.33603371,193.76,193.69,8.21603371]
[1735637943177,2.5857,193.67,193.66,8.21603371]
[1735637944483,2.5856,193.68,193.66,8.21603371]
[1735637946882,2.5854,193.69,193.66,8.21603371]
[1735637948588,2.5853,193.7,193.66,10.80183371]
[1735637949389,8.35937052,193.84,193.64,4.6755]
[1735637949390,8.35937052,193.84,193.69,8.21603371]
[1735637949690,8.21603371,193.84,193.76,8.21603371]
[1735637949885,2.584,193.8,193.76,8.21603371]
[1735637950385,8.21603371,193.8,193.74,8.21603371]
[1735637950589,2.5845,193.76,193.72,8.21603371]
[1735637950784,8.21603371,193.8,193.68,3.12]
[1735637950983,8.21603371,193.8,193.72,8.21603371]
[1735637951187,8.21603371,193.78,193.72,8.21603371]
[1735637951993,2.5847,193.75,193.72,8.21603371]
[1735637952493,8.21603371,193.79,193.72,8.21603371]
[1735637953194,2.5845,193.76,193.71,2.5851]
[1735637953391,8.21603371,193.79,193.71,8.21603371]
[1735637954290,2.5846,193.75,193.72,2.585]
[1735637954489,8.21603371,193.79,193.71,8.21603371]
[1735637954993,8.21603371,193.77,193.71,8.21603371]
[1735637955900,2.5849,193.73,193.69,8.21603371]
[1735637956495,2.5849,193.73,193.69,10.80143371]
[1735637957998,8.21603371,193.77,193.73,2.5848]
[1735637958292,11.33603371,193.79,193.73,2.5848]
[1735637958496,2.5844,193.77,193.73,2.5848]
[1735637958696,11.33603371,193.79,193.73,2.5848]
[1735637958998,11.33603371,193.79,193.72,2.585]
[1735637959199,2.5846,193.76,193.72,2.585]
[1735637960598,8.21603371,193.79,193.71,8.21603371]
[1735637960794,11.33603371,193.79,193.73,8.21603371]
[1735637960997,3.12,193.79,193.73,8.21603371]
[1735637961394,8.21603371,193.81,193.73,8.21603371]
[1735637961594,8.21603371,193.81,193.75,8.21603371]
[1735637962398,2.584,193.8,193.76,2.5844]
[1735637962999,10.79983371,193.81,193.77,2.5842]
[1735637964603,2.5841,193.79,193.76,2.5844]
[1735637964805,8.21603371,193.79,193.72,1.4819]
[1735637965104,8.21603371,193.79,193.71,8.21603371]
[1735637965708,2.5846,193.75,193.72,2.585]
[1735637966202,2.5849,193.73,193.7,2.5852]
[1735637966403,2.5849,193.73,193.7,10.80123371]
[1735637968500,2.5849,193.73,193.7,8.21603371]
[1735637968707,2.5848,193.74,193.71,2.5851]
[1735637971607,2.5846,193.76,193.72,2.5849]
[1735637972203,2.5846,193.76,193.7,8.21603371]
[1735637972509,2.5846,193.76,193.73,2.5848]
[1735637972808,2.5846,193.75,193.7,8.21603371]
[1735637973309,8.21603371,193.78,193.73,2.5849]
[1735637974312,2.5848,193.74,193.7,10.80123371]
[1735637974611,2.5848,193.74,193.7,8.21603371]
[1735637974807,8.21603371,193.78,193.7,8.21603371]
[1735637975007,2.585,193.73,193.7,8.21603371]
[1735637977006,2.585,193.73,193.7,10.80133371]
[1735637979408,2.585,193.72,193.69,2.5854]
[1735637981714,2.585,193.72,193.68,9.81483371]
[1735637981715,2.585,193.72,193.7,2.5853]
[1735637982512,2.5852,193.71,193.68,12.40033371]
[1735637982817,8.21603371,193.72,193.66,8.21603371]
[1735637983115,11.33603371,193.72,193.66,8.21603371]
[1735637983316,11.33603371,193.72,193.67,2.5857]
[1735637983515,8.21603371,193.72,193.67,2.5857]
[1735637983709,2.5854,193.7,193.67,2.5857]
[1735637985216,2.5854,193.69,193.66,10.80183371]
[1735637986918,2.5854,193.69,193.66,2.5858]
[1735637987818,8.21603371,193.72,193.66,2.5858]
[1735637988018,2.5856,193.68,193.66,2.5858]
[1735637989619,2.5855,193.69,193.66,2.5858]
[1735637990215,8.21603371,193.72,193.67,2.5856]
[1735637990420,2.5853,193.7,193.67,2.5856]
[1735637991320,2.5853,193.7,193.68,2.5855]
[1735637992122,2.585,193.72,193.69,2.5853]
[1735637992420,11.33603371,193.74,193.66,8.21603371]
[1735637992721,8.21603371,193.72,193.66,8.21603371]
[1735637993624,2.5852,193.71,193.68,2.5855]
[1735637993822,8.21603371,193.72,193.66,8.21603371]
[1735637994224,2.5854,193.7,193.67,2.5856]
[1735637995725,2.5854,193.69,193.66,2.5858]
[1735637996422,8.21603371,193.72,193.66,2.5858]
[1735637996423,2.5855,193.68,193.66,2.5858]
[1735637998130,8.21603371,193.68,193.62,1.4839]
[1735637998322,2.586,193.65,193.62,1.4839]
[1735637998831,2.5862,193.63,193.59,8.21603371]
[1735637999530,2.5862,193.63,193.61,2.5865]
[1735638000526,8.21603371,193.62,193.56,12.84531402]
[1735638000930,3.12,193.63,193.58,8.21603371]
[1735638002518,5.7062,193.63,193.6,2.5866]
[1735638004729,5.7062,193.63,193.58,8.21603371]
[1735638004929,5.7062,193.63,193.61,2.5865]
[1735638005129,2.5862,193.63,193.61,2.5865]
[1735638005335,2.5861,193.64,193.61,2.5865]
[1735638005736,11.33603371,193.67,193.6,8.21603371]
[1735638005935,2.5859,193.66,193.62,8.21603371]
[1735638006734,2.5859,193.66,193.56,4.62928031]
[1735638006735,2.5853,193.7,193.64,8.21603371]
[1735638007028,3.12,193.72,193.59,1.5523]
[1735638007234,11.33603371,193.72,193.66,8.21603371]
[1735638007435,13.92113371,193.72,193.66,8.21603371]
[1735638007629,2.5851,193.72,193.68,2.5855]
[1735638008145,10.80113371,193.72,193.68,2.5855]
[1735638008436,2.5851,193.72,193.68,2.5855]
[1735638009832,2.5851,193.72,193.66,8.21603371]
[1735638010028,2.5851,193.72,193.69,2.5854]
[1735638011036,2.5846,193.75,193.71,2.5851]
[1735638011242,8.21603371,193.77,193.7,8.21603371]
[1735638011536,8.21603371,193.78,193.72,8.21603371]
[1735638011939,10.80033371,193.78,193.74,2.5847]
[1735638012333,8.21603371,193.78,193.72,8.21603371]
[1735638013535,10.80033371,193.78,193.74,2.5847]
[1735638014343,2.5843,193.78,193.74,2.5847]
[1735638014542,10.80033371,193.78,193.74,2.5847]
[1735638016340,8.21603371,193.76,193.7,2.5851]
[1735638016641,8.21603371,193.73,193.67,8.21603371]
[1735638016841,8.21603371,193.71,193.66,8.5738384]
[1735638017343,8.21603371,193.71,193.68,2.5855]
[1735638017944,10.80123371,193.71,193.67,2.5857]
[1735638018238,8.21603371,193.71,193.64,9.76773371]
[1735638018644,10.80143371,193.69,193.65,2.5859]
[1735638018841,8.21603371,193.69,193.6,31.4449536]
[1735638019040,2.5857,193.67,193.63,2.5861]
[1735638019245,8.21603371,193.69,193.62,8.21603371]
[1735638020447,10.80153371,193.69,193.64,2.586]
[1735638020743,10.80153371,193.69,193.62,8.21603371]
[1735638020944,2.5853,193.7,193.64,8.21603371]
[1735638021146,11.33603371,193.71,193.66,8.21603371]
[1735638021646,3.12,193.71,193.66,8.21603371]
[1735638021946,3.12,193.71,193.68,2.5855]
[1735638023548,10.80103371,193.72,193.68,2.5855]
[1735638023944,3.12,193.75,193.66,8.21603371]
[1735638024144,10.80083371,193.74,193.7,2.5852]
[1735638024344,8.21603371,193.74,193.7,2.5852]